[Event "Late-Titled-Tuesday-Blitz-March-19-2024"]
[Site "Chess.com"]
[Date "2024.03.19"]
[Round "9"]
[White "Fandorine"]
[Black "GoltsevDmitry2000"]
[Result "0-1"]
[WhiteElo "2924"]
[BlackElo "2789"]
[TimeControl "180+1"]
[EndTime "15:44:57 PDT"]
[Termination "GoltsevDmitry2000 won on time"]

1. d4 {[%clk 0:03:00.9]} 1... e6 {[%clk 0:03:00.1]} 2. c4 {[%clk 0:02:59.9]}
2... d5 {[%clk 0:03:00.4]} 3. Nf3 {[%clk 0:02:59.6]} 3... dxc4 {[%clk
0:03:00.3]} 4. Qa4+ {[%clk 0:02:57.9]} 4... Nd7 {[%clk 0:02:58.2]} 5. Qxc4
{[%clk 0:02:58.1]} 5... Ngf6 {[%clk 0:02:58.9]} 6. Bg5 {[%clk 0:02:54.3]} 6...
Be7 {[%clk 0:02:58.8]} 7. Nbd2 {[%clk 0:02:53.2]} 7... h6 {[%clk 0:02:58.9]} 8.
Bh4 {[%clk 0:02:50.5]} 8... Nb6 {[%clk 0:02:58.8]} 9. Qc2 {[%clk 0:02:50.1]}
9... Bd7 {[%clk 0:02:54.3]} 10. e3 {[%clk 0:02:49.2]} 10... Rc8 {[%clk
0:02:52.1]} 11. Be2 {[%clk 0:02:11.6]} 11... c5 {[%clk 0:02:51.5]} 12. dxc5
{[%clk 0:02:12.5]} 12... Rxc5 {[%clk 0:02:46.8]} 13. Qb1 {[%clk 0:02:08.2]}
13... Bb5 {[%clk 0:02:44.1]} 14. Bxb5+ {[%clk 0:02:04.4]} 14... Rxb5 {[%clk
0:02:45]} 15. O-O {[%clk 0:02:00.8]} 15... O-O {[%clk 0:02:45.1]} 16. Rd1 {[%clk
0:01:56.1]} 16... Rd5 {[%clk 0:02:39.4]} 17. Nb3 {[%clk 0:01:48.9]} 17... Rxd1+
{[%clk 0:02:33.6]} 18. Qxd1 {[%clk 0:01:49.8]} 18... Qxd1+ {[%clk 0:02:34]} 19.
Rxd1 {[%clk 0:01:49.7]} 19... Nc4 {[%clk 0:02:32.3]} 20. Rc1 {[%clk 0:01:32.5]}
20... Nxb2 {[%clk 0:02:27.9]} 21. Rc7 {[%clk 0:01:30.9]} 21... Nd5 {[%clk
0:02:20.5]} 22. Rxb7 {[%clk 0:01:15.6]} 22... Bxh4 {[%clk 0:02:19.1]} 23. Nxh4
{[%clk 0:01:16.5]} 23... Rd8 {[%clk 0:02:13.1]} 24. h3 {[%clk 0:01:11.2]} 24...
Nb6 {[%clk 0:01:51.5]} 25. Nd4 {[%clk 0:01:01.1]} 25... Rd7 {[%clk 0:01:51]} 26.
Rb8+ {[%clk 0:01:01]} 26... Kh7 {[%clk 0:01:51.2]} 27. Nhf3 {[%clk 0:01:01.2]}
27... N2c4 {[%clk 0:01:46.1]} 28. g4 {[%clk 0:00:52.2]} 28... Nd5 {[%clk
0:01:43.1]} 29. Nc6 {[%clk 0:00:46.7]} 29... Rc7 {[%clk 0:01:40]} 30. Nce5
{[%clk 0:00:46.2]} 30... Nxe5 {[%clk 0:01:40.3]} 31. Nxe5 {[%clk 0:00:47.1]}
31... f6 {[%clk 0:01:40.8]} 32. Nf3 {[%clk 0:00:45.5]} 32... Nc3 {[%clk
0:01:27.8]} 33. Nd4 {[%clk 0:00:39.6]} 33... e5 {[%clk 0:01:25.6]} 34. Ne6
{[%clk 0:00:39.6]} 34... Rc6 {[%clk 0:01:17.9]} 35. Nf8+ {[%clk 0:00:33.4]}
35... Kg8 {[%clk 0:01:17.8]} 36. Nd7+ {[%clk 0:00:31]} 36... Kh7 {[%clk
0:01:08.1]} 37. Rb7 {[%clk 0:00:22.1]} 37... Nxa2 {[%clk 0:01:03.1]} 38. Rxa7
{[%clk 0:00:22.8]} 38... Nc3 {[%clk 0:01:03.4]} 39. h4 {[%clk 0:00:23.4]} 39...
Ne4 {[%clk 0:01:01.3]} 40. h5 {[%clk 0:00:08.3]} 40... Kg8 {[%clk 0:01:00.5]}
41. Ra8+ {[%clk 0:00:05]} 41... Kf7 {[%clk 0:01:00.6]} 42. Ra7 {[%clk
0:00:05.9]} 42... Kg8 {[%clk 0:01:00.5]} 43. f3 {[%clk 0:00:05.5]} 43... Rc1+
{[%clk 0:00:59.6]} 44. Kg2 {[%clk 0:00:05.2]} 44... Rc2+ {[%clk 0:01:00.5]} 45.
Kg1 {[%clk 0:00:05.8]} 45... Ng5 {[%clk 0:00:59.2]} 46. f4 {[%clk 0:00:06.1]}
46... exf4 {[%clk 0:00:59.5]} 47. exf4 {[%clk 0:00:07]} 47... Nh3+ {[%clk
0:00:59.8]} 48. Kf1 {[%clk 0:00:07.4]} 48... Nxf4 {[%clk 0:01:00.7]} 49. Ra8+
{[%clk 0:00:05.5]} 49... Kf7 {[%clk 0:01:00]} 50. Ra7 {[%clk 0:00:06.4]} 50...
Kg8 {[%clk 0:00:53.5]} 51. Ra8+ {[%clk 0:00:06.3]} 51... Kf7 {[%clk 0:00:53.8]}
52. Ra7 {[%clk 0:00:07]} 52... Ke8 {[%clk 0:00:47.9]} 53. Nb6 {[%clk 0:00:05.5]}
53... Rc6 {[%clk 0:00:42.8]} 54. Na4 {[%clk 0:00:03.1]} 54... Rc1+ {[%clk
0:00:40.7]} 55. Kf2 {[%clk 0:00:03.6]} 55... Ra1 {[%clk 0:00:41.6]} 56. Ra8+
{[%clk 0:00:03.5]} 56... Kf7 {[%clk 0:00:40.2]} 57. Ra7+ {[%clk 0:00:03.5]}
57... Ke6 {[%clk 0:00:38.3]} 58. Ra6+ {[%clk 0:00:03.8]} 58... Ke5 {[%clk
0:00:38]} 59. Ra5+ {[%clk 0:00:03.9]} 59... Kd4 {[%clk 0:00:36.3]} 60. Ra8
{[%clk 0:00:03.7]} 60... Nd3+ {[%clk 0:00:35.7]} 61. Kg3 {[%clk 0:00:03.6]}
61... Ne5 {[%clk 0:00:34.5]} 62. Nb6 {[%clk 0:00:02.5]} 62... Rg1+ {[%clk
0:00:33.5]} 63. Kh3 {[%clk 0:00:03.1]} 63... Kc5 {[%clk 0:00:30.2]} 64. Na4+
{[%clk 0:00:02.3]} 64... Kc6 {[%clk 0:00:29.4]} 65. Ra7 {[%clk 0:00:02.3]} 65...
Rxg4 {[%clk 0:00:28.9]} 66. Nc3 {[%clk 0:00:02.5]} 66... Rg5 {[%clk 0:00:26.9]}
67. Ne4 {[%clk 0:00:02.9]} 67... Rxh5+ {[%clk 0:00:27.2]} 68. Kg3 {[%clk
0:00:03.7]} 68... Nd7 {[%clk 0:00:24.9]} 69. Ra6+ {[%clk 0:00:02.7]} 69... Kd5
{[%clk 0:00:22.8]} 70. Nc3+ {[%clk 0:00:03.4]} 70... Kc4 {[%clk 0:00:17.6]} 71.
Ne4 {[%clk 0:00:03.8]} 71... Nc5 {[%clk 0:00:16]} 72. Nd6+ {[%clk 0:00:01.4]}
72... Kd5 {[%clk 0:00:15.5]} 73. Rb6 {[%clk 0:00:01.8]} 73... Ne4+ {[%clk
0:00:15.8]} 0-1

[Event "Late-Titled-Tuesday-Blitz-March-19-2024"]
[Site "Chess.com"]
[Date "2024.03.19"]
[Round "9"]
[White "Felix-Rose"]
[Black "Boorchess"]
[Result "1/2-1/2"]
[WhiteElo "2259"]
[BlackElo "2522"]
[TimeControl "180+1"]
[EndTime "15:44:59 PDT"]
[Termination "Game drawn - insufficient material"]

1. e4 {[%clk 0:03:00.6]} 1... e5 {[%clk 0:02:59.5]} 2. Nf3 {[%clk 0:03:00.7]}
2... Nf6 {[%clk 0:02:59.2]} 3. Nxe5 {[%clk 0:03:00.8]} 3... d6 {[%clk
0:02:58.9]} 4. Nf3 {[%clk 0:03:00.9]} 4... Nxe4 {[%clk 0:02:58.8]} 5. Nc3 {[%clk
0:03:01.4]} 5... Nf6 {[%clk 0:02:58.8]} 6. d4 {[%clk 0:03:01.4]} 6... g6 {[%clk
0:02:59]} 7. h3 {[%clk 0:03:00.7]} 7... Bg7 {[%clk 0:02:59]} 8. Bd3 {[%clk
0:03:01]} 8... O-O {[%clk 0:02:58.6]} 9. O-O {[%clk 0:03:01.4]} 9... Re8 {[%clk
0:02:58]} 10. Bg5 {[%clk 0:02:58]} 10... h6 {[%clk 0:02:57.6]} 11. Bf4 {[%clk
0:02:58.2]} 11... Nc6 {[%clk 0:02:57.1]} 12. Qd2 {[%clk 0:02:56.8]} 12... Kh7
{[%clk 0:02:57.1]} 13. Rae1 {[%clk 0:02:55.3]} 13... Rxe1 {[%clk 0:02:56.5]} 14.
Rxe1 {[%clk 0:02:53.9]} 14... Ne7 {[%clk 0:02:56.3]} 15. Bh2 {[%clk 0:02:45.5]}
15... Bf5 {[%clk 0:02:55.4]} 16. g4 {[%clk 0:02:41.4]} 16... Bxd3 {[%clk
0:02:54.8]} 17. Qxd3 {[%clk 0:02:42.3]} 17... Qd7 {[%clk 0:02:49.9]} 18. d5
{[%clk 0:02:41]} 18... a6 {[%clk 0:02:48.4]} 19. a4 {[%clk 0:02:36]} 19... Re8
{[%clk 0:02:46.7]} 20. Bg3 {[%clk 0:02:30.2]} 20... Neg8 {[%clk 0:02:36.2]} 21.
Rxe8 {[%clk 0:02:17.1]} 21... Nxe8 {[%clk 0:02:30.1]} 22. Nd4 {[%clk 0:01:49.6]}
22... Ne7 {[%clk 0:02:21]} 23. b3 {[%clk 0:01:40.8]} 23... Nf6 {[%clk
0:02:14.7]} 24. Nde2 {[%clk 0:01:41.1]} 24... h5 {[%clk 0:01:57.1]} 25. f3
{[%clk 0:01:35.2]} 25... hxg4 {[%clk 0:01:51.1]} 26. hxg4 {[%clk 0:01:36.1]}
26... Kg8 {[%clk 0:01:47.7]} 27. Bh4 {[%clk 0:01:34.4]} 27... Nxg4 {[%clk
0:01:34.2]} 28. Bxe7 {[%clk 0:01:34]} 28... Ne5 {[%clk 0:01:33.8]} 29. Qe4
{[%clk 0:01:12.1]} 29... Qxe7 {[%clk 0:00:47.5]} 30. f4 {[%clk 0:01:10.2]} 30...
f5 {[%clk 0:00:46.8]} 31. Qe3 {[%clk 0:01:01.8]} 31... Bh6 {[%clk 0:00:45.1]}
32. Qh3 {[%clk 0:00:56.1]} 32... Ng4 {[%clk 0:00:44.4]} 33. Qf3 {[%clk
0:00:39.4]} 33... Bg7 {[%clk 0:00:42.6]} 34. Nd1 {[%clk 0:00:35.9]} 34... Qh4
{[%clk 0:00:39]} 35. Qg3 {[%clk 0:00:31.6]} 35... Qh6 {[%clk 0:00:28.5]} 36. Kg2
{[%clk 0:00:30.2]} 36... Bf6 {[%clk 0:00:27.1]} 37. Qh3 {[%clk 0:00:28.4]} 37...
Qf8 {[%clk 0:00:27.1]} 38. Nf2 {[%clk 0:00:22.1]} 38... Qe7 {[%clk 0:00:26.8]}
39. Qf3 {[%clk 0:00:20.4]} 39... Ne3+ {[%clk 0:00:25.2]} 40. Kg1 {[%clk
0:00:19.6]} 40... Nxc2 {[%clk 0:00:25.1]} 41. Nh3 {[%clk 0:00:13.1]} 41... Qe3+
{[%clk 0:00:23.6]} 42. Qxe3 {[%clk 0:00:13.5]} 42... Nxe3 {[%clk 0:00:24.2]} 43.
Kf2 {[%clk 0:00:14.3]} 43... Nxd5 {[%clk 0:00:24.3]} 44. Kf3 {[%clk 0:00:14.3]}
44... b5 {[%clk 0:00:23.9]} 45. axb5 {[%clk 0:00:14.5]} 45... axb5 {[%clk
0:00:23.9]} 46. Nf2 {[%clk 0:00:15.2]} 46... c5 {[%clk 0:00:23.4]} 47. Nd3
{[%clk 0:00:15.1]} 47... b4 {[%clk 0:00:22.9]} 48. Nf2 {[%clk 0:00:10.4]} 48...
Kf7 {[%clk 0:00:21.7]} 49. Nd1 {[%clk 0:00:10.3]} 49... Ke6 {[%clk 0:00:21.4]}
50. Ne3 {[%clk 0:00:11.1]} 50... Nxe3 {[%clk 0:00:21.3]} 51. Kxe3 {[%clk
0:00:12]} 51... d5 {[%clk 0:00:21.3]} 52. Kd3 {[%clk 0:00:11.8]} 52... Kd6
{[%clk 0:00:20.8]} 53. Ng3 {[%clk 0:00:11.8]} 53... Kc6 {[%clk 0:00:20.7]} 54.
Ne2 {[%clk 0:00:10.9]} 54... Kb5 {[%clk 0:00:21]} 55. Ng3 {[%clk 0:00:09.9]}
55... c4+ {[%clk 0:00:21]} 56. Kc2 {[%clk 0:00:10.6]} 56... Kc5 {[%clk
0:00:21.2]} 57. Ne2 {[%clk 0:00:10.9]} 57... Bg7 {[%clk 0:00:21.4]} 58. Kd2
{[%clk 0:00:11.1]} 58... Bh6 {[%clk 0:00:21.6]} 59. Ke3 {[%clk 0:00:10.6]} 59...
cxb3 {[%clk 0:00:20.7]} 60. Kd2 {[%clk 0:00:10.8]} 60... Kc4 {[%clk 0:00:20.5]}
61. Kc1 {[%clk 0:00:09.9]} 61... Kd3 {[%clk 0:00:20.3]} 62. Ng1 {[%clk
0:00:09.6]} 62... Bxf4+ {[%clk 0:00:20]} 63. Kb2 {[%clk 0:00:10.5]} 63... Ke3
{[%clk 0:00:19.8]} 64. Kxb3 {[%clk 0:00:09.9]} 64... Kf2 {[%clk 0:00:20.1]} 65.
Nh3+ {[%clk 0:00:10.7]} 65... Kg3 {[%clk 0:00:19.5]} 66. Ng1 {[%clk 0:00:11.2]}
66... Kf2 {[%clk 0:00:19.1]} 67. Nh3+ {[%clk 0:00:11.9]} 67... Ke3 {[%clk
0:00:19]} 68. Ng1 {[%clk 0:00:11.7]} 68... Bg3 {[%clk 0:00:19.3]} 69. Kxb4
{[%clk 0:00:11.5]} 69... Bf2 {[%clk 0:00:19.3]} 70. Nh3 {[%clk 0:00:12.3]} 70...
Bh4 {[%clk 0:00:19.1]} 71. Kc5 {[%clk 0:00:12.5]} 71... Kf3 {[%clk 0:00:19]} 72.
Kxd5 {[%clk 0:00:12.8]} 72... g5 {[%clk 0:00:17]} 73. Ke6 {[%clk 0:00:12.6]}
73... g4 {[%clk 0:00:16.9]} 74. Ng1+ {[%clk 0:00:12.6]} 74... Kf2 {[%clk
0:00:17.1]} 75. Kxf5 {[%clk 0:00:12.1]} 75... g3 {[%clk 0:00:16.4]} 76. Nh3+
{[%clk 0:00:12.8]} 76... Kf3 {[%clk 0:00:15.6]} 77. Ng1+ {[%clk 0:00:12.7]}
77... Kg2 {[%clk 0:00:15.8]} 78. Ne2 {[%clk 0:00:12.7]} 78... Kf3 {[%clk
0:00:16.1]} 79. Nxg3 {[%clk 0:00:13.6]} 1/2-1/2

[Event "Late-Titled-Tuesday-Blitz-March-19-2024"]
[Site "Chess.com"]
[Date "2024.03.19"]
[Round "9"]
[White "Sargsyan_Shant"]
[Black "ChessBrainiacOnTwitch"]
[Result "1-0"]
[WhiteElo "2950"]
[BlackElo "2817"]
[TimeControl "180+1"]
[EndTime "15:45:02 PDT"]
[Termination "Sargsyan_Shant won by resignation"]

1. c4 {[%clk 0:03:00.3]} 1... Nf6 {[%clk 0:02:50.4]} 2. Nc3 {[%clk 0:02:59.3]}
2... g6 {[%clk 0:02:50.5]} 3. e4 {[%clk 0:02:59.2]} 3... d6 {[%clk 0:02:50.6]}
4. d4 {[%clk 0:02:59.9]} 4... Bg7 {[%clk 0:02:51.3]} 5. Be2 {[%clk 0:03:00.5]}
5... O-O {[%clk 0:02:51.3]} 6. Be3 {[%clk 0:03:01.1]} 6... Nc6 {[%clk
0:02:45.8]} 7. Nf3 {[%clk 0:02:53]} 7... Ng4 {[%clk 0:02:42.5]} 8. Bg5 {[%clk
0:02:50]} 8... h6 {[%clk 0:02:42.3]} 9. Bh4 {[%clk 0:02:50.3]} 9... g5 {[%clk
0:02:34]} 10. Bg3 {[%clk 0:02:50.5]} 10... e5 {[%clk 0:02:31.8]} 11. dxe5 {[%clk
0:02:44.3]} 11... dxe5 {[%clk 0:02:17.5]} 12. h3 {[%clk 0:02:37.8]} 12... Nf6
{[%clk 0:02:03.9]} 13. Nxe5 {[%clk 0:02:34.2]} 13... Nxe5 {[%clk 0:01:20.5]} 14.
Qxd8 {[%clk 0:02:18.4]} 14... Rxd8 {[%clk 0:01:21.4]} 15. Bxe5 {[%clk
0:02:18.8]} 15... Re8 {[%clk 0:01:21.9]} 16. Bxf6 {[%clk 0:01:51.1]} 16... Bxf6
{[%clk 0:01:22.1]} 17. f3 {[%clk 0:01:51.7]} 17... c6 {[%clk 0:01:19.6]} 18.
O-O-O {[%clk 0:01:51.9]} 18... Be6 {[%clk 0:01:19.9]} 19. Kc2 {[%clk 0:01:52.1]}
19... Rad8 {[%clk 0:01:17.5]} 20. Na4 {[%clk 0:01:47.2]} 20... b6 {[%clk
0:01:16]} 21. b3 {[%clk 0:01:46]} 21... Be5 {[%clk 0:01:11.8]} 22. Nb2 {[%clk
0:01:41]} 22... f5 {[%clk 0:01:11.3]} 23. Rxd8 {[%clk 0:01:28.8]} 23... Rxd8
{[%clk 0:01:12.2]} 24. exf5 {[%clk 0:01:29.6]} 24... Bxf5+ {[%clk 0:01:05.4]}
25. Bd3 {[%clk 0:01:30.1]} 25... Bxb2 {[%clk 0:01:00]} 26. Bxf5 {[%clk
0:01:29.9]} 26... Ba3 {[%clk 0:01:00.4]} 27. Re1 {[%clk 0:01:22.7]} 27... Bb4
{[%clk 0:00:51.2]} 28. Re2 {[%clk 0:01:23.1]} 28... Kg7 {[%clk 0:00:48.3]} 29.
Be4 {[%clk 0:01:23.3]} 29... Rd6 {[%clk 0:00:47.3]} 30. Bd3 {[%clk 0:01:19.6]}
30... Kf6 {[%clk 0:00:43.7]} 31. g3 {[%clk 0:01:20]} 31... Re6 {[%clk
0:00:43.9]} 32. Be4 {[%clk 0:01:20.4]} 32... Rd6 {[%clk 0:00:44.4]} 33. f4
{[%clk 0:01:07.9]} 33... gxf4 {[%clk 0:00:45.3]} 34. gxf4 {[%clk 0:01:08.8]}
34... Rd4 {[%clk 0:00:43.4]} 35. f5 {[%clk 0:01:05.8]} 35... a5 {[%clk
0:00:39.4]} 36. Bd3 {[%clk 0:01:01.5]} 36... Rd6 {[%clk 0:00:36.4]} 37. Rg2
{[%clk 0:01:00.9]} 37... Ke5 {[%clk 0:00:34.5]} 38. Re2+ {[%clk 0:00:59.5]}
38... Kf6 {[%clk 0:00:34.6]} 39. h4 {[%clk 0:00:57.4]} 39... Bc5 {[%clk
0:00:32]} 40. Rg2 {[%clk 0:00:54.8]} 40... Ke5 {[%clk 0:00:32.2]} 41. Re2+
{[%clk 0:00:55.1]} 41... Kf6 {[%clk 0:00:32.7]} 42. Be4 {[%clk 0:00:53.3]} 42...
Rd4 {[%clk 0:00:32.5]} 43. h5 {[%clk 0:00:52.1]} 43... Bb4 {[%clk 0:00:31.4]}
44. Bd3 {[%clk 0:00:51.6]} 44... Rd6 {[%clk 0:00:28.1]} 45. Rg2 {[%clk
0:00:51.6]} 45... Ke5 {[%clk 0:00:27.8]} 46. Rf2 {[%clk 0:00:46.9]} 46... Kf6
{[%clk 0:00:26]} 47. Re2 {[%clk 0:00:47.4]} 47... Bc5 {[%clk 0:00:24.4]} 48. Rg2
{[%clk 0:00:47.6]} 48... Ke5 {[%clk 0:00:24.3]} 49. Rg8 {[%clk 0:00:44.4]} 49...
Kd4 {[%clk 0:00:21.2]} 50. Rg4+ {[%clk 0:00:41.9]} 50... Ke5 {[%clk 0:00:21.7]}
51. Rg8 {[%clk 0:00:41.2]} 51... Kd4 {[%clk 0:00:22.1]} 52. Re8 {[%clk
0:00:41.1]} 52... Bb4 {[%clk 0:00:15.8]} 53. Re4+ {[%clk 0:00:36.6]} 53... Kc5
{[%clk 0:00:16.4]} 54. Rf4 {[%clk 0:00:37]} 54... Rf6 {[%clk 0:00:16.5]} 55. Rg4
{[%clk 0:00:37.4]} 55... Kd6 {[%clk 0:00:16.7]} 56. Rg8 {[%clk 0:00:27.5]} 56...
Bc5 {[%clk 0:00:16.5]} 57. Re8 {[%clk 0:00:27.4]} 57... Bb4 {[%clk 0:00:16.1]}
58. Be4 {[%clk 0:00:27.8]} 58... Kd7 {[%clk 0:00:15.8]} 59. Rg8 {[%clk
0:00:26.4]} 59... Kd6 {[%clk 0:00:15.8]} 60. Kd3 {[%clk 0:00:26.7]} 60... Ke5
{[%clk 0:00:14.6]} 61. Rg6 {[%clk 0:00:25.5]} 61... Rxg6 {[%clk 0:00:10.7]} 62.
fxg6 {[%clk 0:00:26.4]} 62... Kf6 {[%clk 0:00:08.2]} 63. Bxc6 {[%clk 0:00:26.8]}
63... Ba3 {[%clk 0:00:05.4]} 64. Ke4 {[%clk 0:00:27.1]} 64... Kg7 {[%clk
0:00:05.2]} 65. Kd5 {[%clk 0:00:27.6]} 65... Kf6 {[%clk 0:00:05]} 66. Be8 {[%clk
0:00:27.8]} 66... Kg7 {[%clk 0:00:05.4]} 67. Bf7 {[%clk 0:00:28.4]} 67... Kf6
{[%clk 0:00:05.6]} 68. Kc6 {[%clk 0:00:29.3]} 68... Bc5 {[%clk 0:00:04.2]} 69.
Kb5 {[%clk 0:00:29.9]} 69... Kg7 {[%clk 0:00:01.8]} 70. a3 {[%clk 0:00:30.1]}
70... Kf6 {[%clk 0:00:02.2]} 71. b4 {[%clk 0:00:30.4]} 71... axb4 {[%clk
0:00:03.1]} 72. axb4 {[%clk 0:00:31.3]} 72... Bf2 {[%clk 0:00:03.7]} 73. Kc6
{[%clk 0:00:29.8]} 73... Kg7 {[%clk 0:00:03.9]} 74. Kd5 {[%clk 0:00:28.7]} 74...
Kf8 {[%clk 0:00:04.4]} 75. Be6 {[%clk 0:00:27.5]} 75... Kg7 {[%clk 0:00:04.8]}
76. Bg4 {[%clk 0:00:27.8]} 76... Be1 {[%clk 0:00:05.3]} 77. c5 {[%clk
0:00:26.8]} 77... bxc5 {[%clk 0:00:03.2]} 78. bxc5 {[%clk 0:00:27.7]} 78... Kf8
{[%clk 0:00:02.2]} 79. Ke6 {[%clk 0:00:27.5]} 79... Bg3 {[%clk 0:00:02.7]} 80.
Kd7 {[%clk 0:00:27.4]} 80... Kg7 {[%clk 0:00:01.7]} 81. c6 {[%clk 0:00:27.9]}
1-0

[Event "Late-Titled-Tuesday-Blitz-March-19-2024"]
[Site "Chess.com"]
[Date "2024.03.19"]
[Round "9"]
[White "subham777"]
[Black "Shahdad2007"]
[Result "1/2-1/2"]
[WhiteElo "2542"]
[BlackElo "2606"]
[TimeControl "180+1"]
[EndTime "15:45:04 PDT"]
[Termination "Game drawn by repetition"]

1. e4 {[%clk 0:03:00.9]} 1... c5 {[%clk 0:02:58.7]} 2. Nf3 {[%clk 0:02:59.2]}
2... e6 {[%clk 0:02:59.2]} 3. g3 {[%clk 0:02:59.2]} 3... Nc6 {[%clk 0:02:58]} 4.
Bg2 {[%clk 0:02:59]} 4... g6 {[%clk 0:02:56.6]} 5. O-O {[%clk 0:02:58.1]} 5...
Bg7 {[%clk 0:02:56.7]} 6. c3 {[%clk 0:02:58.6]} 6... Nge7 {[%clk 0:02:53.9]} 7.
Re1 {[%clk 0:02:56.2]} 7... O-O {[%clk 0:02:53.1]} 8. d4 {[%clk 0:02:52.1]} 8...
d6 {[%clk 0:02:49.2]} 9. a4 {[%clk 0:02:50.3]} 9... b6 {[%clk 0:02:47]} 10. Na3
{[%clk 0:02:48]} 10... Ba6 {[%clk 0:02:45.2]} 11. Bf4 {[%clk 0:02:45.8]} 11...
e5 {[%clk 0:02:34.5]} 12. dxe5 {[%clk 0:02:41.7]} 12... dxe5 {[%clk 0:02:33.8]}
13. Bg5 {[%clk 0:02:39.9]} 13... Qd3 {[%clk 0:02:23.9]} 14. Qxd3 {[%clk
0:02:34.7]} 14... Bxd3 {[%clk 0:02:21.7]} 15. Rad1 {[%clk 0:02:31.5]} 15... Rfd8
{[%clk 0:02:20.9]} 16. Rd2 {[%clk 0:02:21.3]} 16... f6 {[%clk 0:02:16.6]} 17.
Be3 {[%clk 0:02:18.3]} 17... Na5 {[%clk 0:01:37]} 18. Red1 {[%clk 0:02:12.2]}
18... c4 {[%clk 0:01:35]} 19. Nxc4 {[%clk 0:02:05.6]} 19... Nxc4 {[%clk
0:01:34.2]} 20. Rxd3 {[%clk 0:02:05.4]} 20... Rxd3 {[%clk 0:01:34.8]} 21. Rxd3
{[%clk 0:02:06.2]} 21... Nxb2 {[%clk 0:01:35.7]} 22. Rd7 {[%clk 0:02:06.2]}
22... Nc6 {[%clk 0:01:36.3]} 23. Bf1 {[%clk 0:02:01.3]} 23... Rd8 {[%clk
0:01:32.1]} 24. Rc7 {[%clk 0:01:57.3]} 24... Rd6 {[%clk 0:01:31]} 25. Bb5 {[%clk
0:01:54.7]} 25... Na5 {[%clk 0:01:29.1]} 26. Rxa7 {[%clk 0:01:51.4]} 26... Bf8
{[%clk 0:01:27.6]} 27. Ra8 {[%clk 0:01:39.8]} 27... Kf7 {[%clk 0:01:21.8]} 28.
Rb8 {[%clk 0:01:34.7]} 28... Nbc4 {[%clk 0:01:21.1]} 29. Bxc4+ {[%clk
0:01:27.5]} 29... Nxc4 {[%clk 0:01:20.5]} 30. Rb7+ {[%clk 0:01:27.6]} 30... Ke6
{[%clk 0:01:18.5]} 31. Rxh7 {[%clk 0:01:23.5]} 31... Nxe3 {[%clk 0:01:17.1]} 32.
fxe3 {[%clk 0:01:23.8]} 32... Rd3 {[%clk 0:01:17.7]} 33. Kf2 {[%clk 0:01:14.3]}
33... Bc5 {[%clk 0:01:17.1]} 34. h4 {[%clk 0:01:04.6]} 34... Rxe3 {[%clk
0:01:16.3]} 35. Kg2 {[%clk 0:01:01.3]} 35... Rxe4 {[%clk 0:01:12.6]} 36. Rg7
{[%clk 0:00:50.6]} 36... Kf5 {[%clk 0:01:12.1]} 37. Nh2 {[%clk 0:00:40.4]} 37...
Rxa4 {[%clk 0:01:09.7]} 38. g4+ {[%clk 0:00:38.5]} 38... Ke6 {[%clk 0:01:09.2]}
39. Rxg6 {[%clk 0:00:38.4]} 39... Kf7 {[%clk 0:01:09]} 40. Rh6 {[%clk
0:00:33.9]} 40... Bf8 {[%clk 0:00:58.1]} 41. Rh5 {[%clk 0:00:24.7]} 41... Rc4
{[%clk 0:00:53.5]} 42. Rf5 {[%clk 0:00:25]} 42... Ke6 {[%clk 0:00:32.7]} 43. Rf3
{[%clk 0:00:24.2]} 43... e4 {[%clk 0:00:32.7]} 44. Rh3 {[%clk 0:00:24.3]} 44...
Bh6 {[%clk 0:00:26.7]} 45. Nf1 {[%clk 0:00:19.4]} 45... b5 {[%clk 0:00:22.6]}
46. Ng3 {[%clk 0:00:16.8]} 46... Rxc3 {[%clk 0:00:20]} 47. Nxe4 {[%clk
0:00:16.4]} 47... Rxh3 {[%clk 0:00:18.6]} 48. Kxh3 {[%clk 0:00:16.8]} 48... b4
{[%clk 0:00:19.2]} 49. g5 {[%clk 0:00:13.5]} 49... fxg5 {[%clk 0:00:18.6]} 50.
hxg5 {[%clk 0:00:14.3]} 50... Bg7 {[%clk 0:00:18.9]} 51. Kg4 {[%clk 0:00:12.6]}
51... Kd5 {[%clk 0:00:16.7]} 52. Nd2 {[%clk 0:00:11.6]} 52... Bc3 {[%clk
0:00:17]} 53. Nb3 {[%clk 0:00:11.7]} 53... Kc4 {[%clk 0:00:16.8]} 54. Na5+
{[%clk 0:00:11.7]} 54... Kb5 {[%clk 0:00:17]} 55. Nb3 {[%clk 0:00:11.9]} 55...
Kc6 {[%clk 0:00:09.5]} 56. g6 {[%clk 0:00:11.1]} 56... Bg7 {[%clk 0:00:08.5]}
57. Kf5 {[%clk 0:00:10.5]} 57... Kd5 {[%clk 0:00:08.9]} 58. Na5 {[%clk
0:00:09.6]} 58... Bh8 {[%clk 0:00:08.4]} 59. Nb3 {[%clk 0:00:07.5]} 59... Kc4
{[%clk 0:00:08.5]} 60. Na5+ {[%clk 0:00:07.6]} 60... Kb5 {[%clk 0:00:08.4]} 61.
Nb3 {[%clk 0:00:08.1]} 61... Ka4 {[%clk 0:00:08]} 62. Nc5+ {[%clk 0:00:08.1]}
62... Ka3 {[%clk 0:00:07.5]} 63. Ke6 {[%clk 0:00:07.3]} 63... Bd4 {[%clk
0:00:08]} 64. Nd3 {[%clk 0:00:04.7]} 64... b3 {[%clk 0:00:07.5]} 65. Kd5 {[%clk
0:00:04.6]} 65... Bg7 {[%clk 0:00:07.2]} 66. Ke6 {[%clk 0:00:03.9]} 66... Bd4
{[%clk 0:00:02.2]} 67. Kf7 {[%clk 0:00:03]} 67... Ka4 {[%clk 0:00:02.2]} 68. g7
{[%clk 0:00:03]} 68... Bxg7 {[%clk 0:00:02.2]} 69. Kxg7 {[%clk 0:00:03.9]} 69...
Kb5 {[%clk 0:00:02.5]} 70. Kf6 {[%clk 0:00:03.6]} 70... Kc4 {[%clk 0:00:03.4]}
71. Nb2+ {[%clk 0:00:03.8]} 71... Kc3 {[%clk 0:00:04]} 72. Na4+ {[%clk 0:00:04]}
72... Kb4 {[%clk 0:00:04]} 73. Nb2 {[%clk 0:00:04.1]} 73... Ka3 {[%clk
0:00:04.5]} 74. Nc4+ {[%clk 0:00:04.3]} 74... Kb4 {[%clk 0:00:04.6]} 75. Nb2
{[%clk 0:00:04.6]} 75... Kc3 {[%clk 0:00:05.3]} 76. Na4+ {[%clk 0:00:04.9]}
76... Kb4 {[%clk 0:00:05.3]} 77. Nb2 {[%clk 0:00:05]} 1/2-1/2